[Event "Early-Titled-Tuesday-Blitz-March-19-2024"]
[Site "Chess.com"]
[Date "2024.03.19"]
[Round "11"]
[White "wannabe2700"]
[Black "jocmil"]
[Result "1-0"]
[WhiteElo "2647"]
[BlackElo "2750"]
[TimeControl "180+1"]
[EndTime "10:07:55 PDT"]
[Termination "wannabe2700 won by resignation"]

1. b3 {[%clk 0:03:00.9]} 1... e5 {[%clk 0:02:57.9]} 2. Bb2 {[%clk 0:03:01.8]}
2... Nc6 {[%clk 0:02:58.3]} 3. Nf3 {[%clk 0:03:01.1]} 3... d6 {[%clk 0:02:54.4]}
4. e3 {[%clk 0:02:58.6]} 4... g6 {[%clk 0:02:54.4]} 5. d4 {[%clk 0:02:58.2]}
5... Bg7 {[%clk 0:02:49.7]} 6. dxe5 {[%clk 0:02:58.6]} 6... Nh6 {[%clk
0:02:35.3]} 7. Nc3 {[%clk 0:02:54.5]} 7... Nxe5 {[%clk 0:02:34.7]} 8. Nxe5
{[%clk 0:02:54.9]} 8... Bxe5 {[%clk 0:02:34.6]} 9. Qd2 {[%clk 0:02:54.8]} 9...
O-O {[%clk 0:02:30.4]} 10. O-O-O {[%clk 0:02:54.8]} 10... a5 {[%clk 0:02:29.2]}
11. f4 {[%clk 0:02:49.8]} 11... Bg7 {[%clk 0:02:28.9]} 12. e4 {[%clk 0:02:50.1]}
12... a4 {[%clk 0:01:53.2]} 13. Nxa4 {[%clk 0:02:49.5]} 13... Bxb2+ {[%clk
0:01:53]} 14. Kxb2 {[%clk 0:02:47.4]} 14... Bg4 {[%clk 0:01:48.4]} 15. Re1
{[%clk 0:02:45.5]} 15... Bd7 {[%clk 0:01:48.5]} 16. Nc3 {[%clk 0:02:45.4]} 16...
b5 {[%clk 0:01:31.1]} 17. Bxb5 {[%clk 0:02:43.9]} 17... Bxb5 {[%clk 0:01:28.1]}
18. Nxb5 {[%clk 0:02:44.8]} 18... Qb8 {[%clk 0:01:18.9]} 19. Nc3 {[%clk
0:02:35.1]} 19... Qb4 {[%clk 0:01:16.2]} 20. a4 {[%clk 0:02:35.1]} 20... Rxa4
{[%clk 0:01:13.7]} 21. Ra1 {[%clk 0:02:35.2]} 21... Rfa8 {[%clk 0:01:08.4]} 22.
Rxa4 {[%clk 0:02:35]} 22... Rxa4 {[%clk 0:01:08]} 23. Ra1 {[%clk 0:02:35.4]}
23... Rxa1 {[%clk 0:01:05.4]} 24. Kxa1 {[%clk 0:02:36.3]} 24... Ng4 {[%clk
0:00:57.2]} 25. h3 {[%clk 0:02:36.3]} 25... Nf6 {[%clk 0:00:55.2]} 26. Qd3
{[%clk 0:02:36.1]} 26... Nd7 {[%clk 0:00:45.3]} 27. Kb2 {[%clk 0:02:33.6]} 27...
Nc5 {[%clk 0:00:44.7]} 28. Qd5 {[%clk 0:02:21]} 28... c6 {[%clk 0:00:39]} 29.
Qxc6 {[%clk 0:02:15.7]} 29... Qd4 {[%clk 0:00:38.9]} 30. Qd5 {[%clk 0:02:10.7]}
30... Qb4 {[%clk 0:00:33.8]} 31. e5 {[%clk 0:01:57.7]} 31... dxe5 {[%clk
0:00:25.1]} 32. Qxe5 {[%clk 0:01:58.6]} 32... h5 {[%clk 0:00:22.5]} 33. Nd5
{[%clk 0:01:56]} 33... Nd3+ {[%clk 0:00:22.8]} 34. cxd3 {[%clk 0:01:12.9]} 34...
Qd2+ {[%clk 0:00:22.4]} 35. Ka1 {[%clk 0:01:13.3]} 35... Qd1+ {[%clk 0:00:18.3]}
36. Ka2 {[%clk 0:01:13.2]} 36... Qd2+ {[%clk 0:00:18.1]} 37. Qb2 {[%clk
0:01:13.3]} 37... Qa5+ {[%clk 0:00:18.7]} 38. Kb1 {[%clk 0:01:11.7]} 38... Qxd5
{[%clk 0:00:19.3]} 39. Qc2 {[%clk 0:01:05.9]} 39... Qd4 {[%clk 0:00:19.7]} 40.
Qd2 {[%clk 0:01:03.5]} 40... h4 {[%clk 0:00:18.7]} 41. b4 {[%clk 0:01:01.5]}
41... Kh7 {[%clk 0:00:19.2]} 42. Kc2 {[%clk 0:01:01]} 42... Qd5 {[%clk
0:00:18.3]} 43. Kc3 {[%clk 0:00:56.7]} 43... Qc6+ {[%clk 0:00:18]} 44. Kb3
{[%clk 0:00:56.2]} 44... Qd5+ {[%clk 0:00:17.7]} 45. Ka3 {[%clk 0:00:56.1]}
45... Qa8+ {[%clk 0:00:17.7]} 46. Kb2 {[%clk 0:00:55.6]} 46... Qd5 {[%clk
0:00:18.2]} 47. Qf2 {[%clk 0:00:47.1]} 47... Qxd3 {[%clk 0:00:17]} 48. Qxh4+
{[%clk 0:00:47.1]} 48... Kg7 {[%clk 0:00:17.2]} 49. Qf2 {[%clk 0:00:46.5]} 49...
Qc4 {[%clk 0:00:16.8]} 50. Qd2 {[%clk 0:00:41.7]} 50... Kh7 {[%clk 0:00:16.4]}
51. g3 {[%clk 0:00:36.7]} 51... Qf1 {[%clk 0:00:14.4]} 52. h4 {[%clk 0:00:35.6]}
52... Qc4 {[%clk 0:00:14.8]} 53. Qc3 {[%clk 0:00:35.9]} 53... Qe2+ {[%clk
0:00:14.5]} 54. Kb3 {[%clk 0:00:36.8]} 54... Qe6+ {[%clk 0:00:14.9]} 55. Ka3
{[%clk 0:00:36.9]} 55... Qa6+ {[%clk 0:00:14.9]} 56. Kb2 {[%clk 0:00:37.5]}
56... Qe2+ {[%clk 0:00:15.2]} 57. Kc1 {[%clk 0:00:29.7]} 57... Qf1+ {[%clk
0:00:14.7]} 58. Kc2 {[%clk 0:00:29.1]} 58... Qe2+ {[%clk 0:00:14.9]} 59. Qd2
{[%clk 0:00:26]} 59... Qc4+ {[%clk 0:00:15]} 60. Kb2 {[%clk 0:00:25.9]} 60...
Qb5 {[%clk 0:00:11.8]} 61. Kb3 {[%clk 0:00:25.3]} 61... Qf1 {[%clk 0:00:10.7]}
62. Qd5 {[%clk 0:00:20.8]} 62... Qb1+ {[%clk 0:00:09.2]} 63. Ka4 {[%clk
0:00:21.1]} 63... Qc2+ {[%clk 0:00:07.8]} 64. Ka5 {[%clk 0:00:20.5]} 64... Qc7+
{[%clk 0:00:05.5]} 65. Ka6 {[%clk 0:00:20.1]} 65... Qc8+ {[%clk 0:00:05.1]} 66.
Qb7 {[%clk 0:00:19.3]} 66... Qe6+ {[%clk 0:00:05.4]} 67. Ka7 {[%clk 0:00:18.8]}
67... Qa2+ {[%clk 0:00:05.6]} 68. Kb8 {[%clk 0:00:18.7]} 68... Qe6 {[%clk
0:00:05.7]} 69. b5 {[%clk 0:00:18.9]} 69... Qe8+ {[%clk 0:00:06.1]} 70. Ka7
{[%clk 0:00:18.9]} 70... Qe3+ {[%clk 0:00:06.6]} 71. b6 {[%clk 0:00:18.9]} 71...
Qa3+ {[%clk 0:00:07.2]} 72. Qa6 {[%clk 0:00:17.9]} 72... Qe3 {[%clk 0:00:07.7]}
73. Qc4 {[%clk 0:00:14.8]} 73... Qa3+ {[%clk 0:00:06.7]} 74. Kb8 {[%clk
0:00:14.3]} 74... Qf8+ {[%clk 0:00:06.5]} 75. Ka7 {[%clk 0:00:13.9]} 75... Qa3+
{[%clk 0:00:05.9]} 76. Kb7 {[%clk 0:00:14.2]} 76... Qe7+ {[%clk 0:00:06.1]} 77.
Kc6 {[%clk 0:00:14.2]} 77... Qe4+ {[%clk 0:00:06.6]} 78. Qxe4 {[%clk 0:00:14]}
1-0

[Event "Early-Titled-Tuesday-Blitz-March-19-2024"]
[Site "Chess.com"]
[Date "2024.03.19"]
[Round "11"]
[White "JonasEilenberg"]
[Black "Matibar"]
[Result "0-1"]
[WhiteElo "2560"]
[BlackElo "2753"]
[TimeControl "180+1"]
[EndTime "10:08:04 PDT"]
[Termination "Matibar won by resignation"]

1. e4 {[%clk 0:03:00.9]} 1... Nf6 {[%clk 0:02:57.4]} 2. e5 {[%clk 0:02:58.4]}
2... Nd5 {[%clk 0:02:57.6]} 3. c4 {[%clk 0:02:59.1]} 3... Nb6 {[%clk 0:02:57.1]}
4. d4 {[%clk 0:02:59.8]} 4... d6 {[%clk 0:02:57.4]} 5. f4 {[%clk 0:02:59.7]}
5... Bf5 {[%clk 0:02:55.2]} 6. Nc3 {[%clk 0:02:58.2]} 6... e6 {[%clk 0:02:55.2]}
7. Nf3 {[%clk 0:02:58.3]} 7... Be7 {[%clk 0:02:52.1]} 8. Be3 {[%clk 0:02:58.8]}
8... O-O {[%clk 0:02:49.1]} 9. Be2 {[%clk 0:02:59.3]} 9... d5 {[%clk 0:02:42.1]}
10. c5 {[%clk 0:02:40.7]} 10... Nc4 {[%clk 0:02:41.8]} 11. Bxc4 {[%clk
0:02:33.1]} 11... dxc4 {[%clk 0:02:41.7]} 12. d5 {[%clk 0:02:33.7]} 12... exd5
{[%clk 0:02:36]} 13. Qxd5 {[%clk 0:02:34.6]} 13... Bd3 {[%clk 0:02:01.6]} 14.
Qxb7 {[%clk 0:02:03.4]} 14... Nd7 {[%clk 0:02:01.4]} 15. Nd5 {[%clk 0:02:03.5]}
15... Bxc5 {[%clk 0:01:58.5]} 16. Bxc5 {[%clk 0:01:45.9]} 16... Nxc5 {[%clk
0:01:58.2]} 17. Qc6 {[%clk 0:01:46.6]} 17... Ne4 {[%clk 0:01:50.1]} 18. b3
{[%clk 0:01:28.9]} 18... Rb8 {[%clk 0:01:44.1]} 19. Rd1 {[%clk 0:01:13.5]} 19...
Bc2 {[%clk 0:01:09.7]} 20. Nf6+ {[%clk 0:01:06.3]} 20... gxf6 {[%clk 0:00:56.7]}
21. Rxd8 {[%clk 0:01:05.7]} 21... Rfxd8 {[%clk 0:00:55.2]} 22. O-O {[%clk
0:01:02.4]} 22... c3 {[%clk 0:00:53.8]} 23. e6 {[%clk 0:00:51.1]} 23... fxe6
{[%clk 0:00:45.9]} 24. Qxe6+ {[%clk 0:00:49.8]} 24... Kh8 {[%clk 0:00:45.6]} 25.
Re1 {[%clk 0:00:44.1]} 25... Re8 {[%clk 0:00:41.3]} 26. Qc6 {[%clk 0:00:42.7]}
26... Rbd8 {[%clk 0:00:14.6]} 27. Nh4 {[%clk 0:00:36.3]} 27... Bd3 {[%clk
0:00:10.5]} 28. Nf5 {[%clk 0:00:23.5]} 28... c2 {[%clk 0:00:07.9]} 29. Nd4
{[%clk 0:00:23.8]} 29... Nd6 {[%clk 0:00:05.1]} 30. Rxe8+ {[%clk 0:00:20.7]}
30... Rxe8 {[%clk 0:00:06]} 31. Nxc2 {[%clk 0:00:21.2]} 31... Re2 {[%clk
0:00:05.4]} 32. Nd4 {[%clk 0:00:18.8]} 32... Rxa2 {[%clk 0:00:04.3]} 33. Ne6
{[%clk 0:00:16.4]} 33... Be4 {[%clk 0:00:03.6]} 34. Qd7 {[%clk 0:00:15.2]} 34...
Rxg2+ {[%clk 0:00:03.5]} 35. Kf1 {[%clk 0:00:15.8]} 35... Rg8 {[%clk 0:00:03.2]}
36. Qe7 {[%clk 0:00:15.1]} 36... Bd3+ {[%clk 0:00:03.1]} 37. Ke1 {[%clk
0:00:13.8]} 37... Ne4 {[%clk 0:00:04]} 38. Ng5 {[%clk 0:00:10.2]} 38... fxg5
{[%clk 0:00:03.9]} 39. Qe5+ {[%clk 0:00:10.5]} 39... Rg7 {[%clk 0:00:04.2]} 40.
f5 {[%clk 0:00:11.1]} 40... h6 {[%clk 0:00:03.4]} 41. f6 {[%clk 0:00:10.3]}
41... Nxf6 {[%clk 0:00:03.7]} 42. Qxf6 {[%clk 0:00:10.2]} 42... Bg6 {[%clk
0:00:04.6]} 43. Kd2 {[%clk 0:00:07.7]} 43... Kh7 {[%clk 0:00:04.2]} 44. Qd8
{[%clk 0:00:07.2]} 44... c6 {[%clk 0:00:03.8]} 45. Qd4 {[%clk 0:00:06.9]} 45...
Rf7 {[%clk 0:00:03.4]} 46. Kc3 {[%clk 0:00:07.4]} 46... Bf5 {[%clk 0:00:03.6]}
47. Qc5 {[%clk 0:00:07.1]} 47... Be4 {[%clk 0:00:03.4]} 48. Qe5 {[%clk
0:00:07.2]} 48... Bd5 {[%clk 0:00:03.3]} 49. Kb4 {[%clk 0:00:07.3]} 49... Kg6
{[%clk 0:00:03.7]} 50. Kc5 {[%clk 0:00:07.7]} 50... Rb7 {[%clk 0:00:04.2]} 51.
Qc3 {[%clk 0:00:05.6]} 51... Rb5+ {[%clk 0:00:03.4]} 52. Kd6 {[%clk 0:00:06]}
52... Rxb3 {[%clk 0:00:03.9]} 53. Qc2+ {[%clk 0:00:06.1]} 53... Kh5 {[%clk
0:00:04.5]} 54. Qe2+ {[%clk 0:00:06]} 54... Rf3 {[%clk 0:00:05.1]} 55. Ke5
{[%clk 0:00:04.2]} 55... Kh4 {[%clk 0:00:04.3]} 56. Qe1+ {[%clk 0:00:03.8]}
56... Kh5 {[%clk 0:00:04.8]} 57. Qe2 {[%clk 0:00:04.2]} 57... Kh4 {[%clk
0:00:04.8]} 58. Qe1+ {[%clk 0:00:02.8]} 58... Kh3 {[%clk 0:00:05.4]} 59. Qa5
{[%clk 0:00:03.5]} 59... h5 {[%clk 0:00:05.4]} 60. Qxa7 {[%clk 0:00:04]} 60...
g4 {[%clk 0:00:05.8]} 61. Qh7 {[%clk 0:00:04.3]} 61... h4 {[%clk 0:00:06.3]} 62.
Qh6 {[%clk 0:00:03]} 62... Rf2 {[%clk 0:00:05.3]} 63. Qe3+ {[%clk 0:00:02.3]}
63... Rf3 {[%clk 0:00:05.3]} 64. Qh6 {[%clk 0:00:02.2]} 64... g3 {[%clk
0:00:04.2]} 65. hxg3 {[%clk 0:00:02.2]} 65... Kxg3 {[%clk 0:00:04.1]} 66. Qg5+
{[%clk 0:00:02.5]} 66... Kh3 {[%clk 0:00:04.5]} 67. Qh6 {[%clk 0:00:03.4]} 67...
Rg3 {[%clk 0:00:04.8]} 68. Kf4 {[%clk 0:00:03.6]} 68... Rg4+ {[%clk 0:00:05]}
69. Kf5 {[%clk 0:00:03.6]} 69... Be4+ {[%clk 0:00:05.1]} 70. Ke5 {[%clk
0:00:04.1]} 70... Kg3 {[%clk 0:00:05.1]} 71. Qe3+ {[%clk 0:00:04.7]} 71... Bf3
{[%clk 0:00:05.5]} 72. Qe1+ {[%clk 0:00:04.1]} 72... Kg2 {[%clk 0:00:06]} 73.
Qd2+ {[%clk 0:00:04.4]} 73... Kh3 {[%clk 0:00:06.3]} 74. Qf2 {[%clk 0:00:04.1]}
74... Rg3 {[%clk 0:00:06.4]} 75. Kf4 {[%clk 0:00:04]} 75... Bg2 {[%clk
0:00:06.8]} 76. Qg1 {[%clk 0:00:03.5]} 76... Rg4+ {[%clk 0:00:06.7]} 77. Ke3
{[%clk 0:00:03.7]} 77... Bd5 {[%clk 0:00:07]} 78. Qf2 {[%clk 0:00:03.9]} 78...
Rg3+ {[%clk 0:00:06.7]} 79. Kf4 {[%clk 0:00:04.3]} 79... Rf3+ {[%clk 0:00:06.9]}
80. Qxf3+ {[%clk 0:00:02.7]} 80... Bxf3 {[%clk 0:00:07.8]} 81. Kxf3 {[%clk
0:00:03.5]} 81... c5 {[%clk 0:00:08.3]} 0-1

[Event "Early-Titled-Tuesday-Blitz-March-19-2024"]
[Site "Chess.com"]
[Date "2024.03.19"]
[Round "11"]
[White "kassablanca"]
[Black "Grossboss19"]
[Result "0-1"]
[WhiteElo "2735"]
[BlackElo "2580"]
[TimeControl "180+1"]
[EndTime "10:08:15 PDT"]
[Termination "Grossboss19 won by resignation"]

1. c3 {[%clk 0:03:00.9]} 1... d5 {[%clk 0:02:58.7]} 2. d4 {[%clk 0:03:01.1]}
2... Nf6 {[%clk 0:02:58.1]} 3. Nf3 {[%clk 0:03:01.6]} 3... e6 {[%clk 0:02:53.7]}
4. Bf4 {[%clk 0:03:00.1]} 4... c5 {[%clk 0:02:53.6]} 5. e3 {[%clk 0:02:58]} 5...
Nc6 {[%clk 0:02:48.9]} 6. Nbd2 {[%clk 0:02:34.9]} 6... Bd6 {[%clk 0:02:47.9]} 7.
dxc5 {[%clk 0:02:29.8]} 7... Bxc5 {[%clk 0:02:47.6]} 8. Bd3 {[%clk 0:02:24]}
8... O-O {[%clk 0:02:46.1]} 9. O-O {[%clk 0:02:24]} 9... Re8 {[%clk 0:02:43.6]}
10. e4 {[%clk 0:02:19.7]} 10... e5 {[%clk 0:02:29.4]} 11. Bg5 {[%clk 0:02:19.1]}
11... d4 {[%clk 0:02:29.5]} 12. Nb3 {[%clk 0:02:12]} 12... Bb6 {[%clk
0:02:24.5]} 13. cxd4 {[%clk 0:02:08.5]} 13... Nxd4 {[%clk 0:02:24]} 14. Nbxd4
{[%clk 0:02:06.6]} 14... Bxd4 {[%clk 0:02:21.6]} 15. Nxd4 {[%clk 0:02:06.6]}
15... Qxd4 {[%clk 0:02:20.6]} 16. Bxf6 {[%clk 0:01:47.5]} 16... gxf6 {[%clk
0:02:21.5]} 17. Qf3 {[%clk 0:01:47.4]} 17... Kg7 {[%clk 0:02:11.2]} 18. Bb5
{[%clk 0:01:37.5]} 18... Re7 {[%clk 0:02:06.1]} 19. Rad1 {[%clk 0:01:34.8]}
19... Qb6 {[%clk 0:02:05.9]} 20. Bc4 {[%clk 0:01:18.1]} 20... Be6 {[%clk
0:02:01.1]} 21. Bxe6 {[%clk 0:01:14.2]} 21... Qxe6 {[%clk 0:02:00.7]} 22. Rd5
{[%clk 0:01:11.4]} 22... Rc8 {[%clk 0:01:55.3]} 23. Rfd1 {[%clk 0:01:11.2]}
23... Rec7 {[%clk 0:01:32.6]} 24. Rd6 {[%clk 0:01:04.7]} 24... Qe7 {[%clk
0:01:32.8]} 25. h4 {[%clk 0:01:01.4]} 25... Rc1 {[%clk 0:01:27.5]} 26. Kh2
{[%clk 0:00:57]} 26... Rxd1 {[%clk 0:01:25.8]} 27. Rxd1 {[%clk 0:00:47.8]} 27...
Rd8 {[%clk 0:01:22.3]} 28. Rc1 {[%clk 0:00:35.4]} 28... Rd4 {[%clk 0:01:16.7]}
29. Qg4+ {[%clk 0:00:30.4]} 29... Kh8 {[%clk 0:01:09.4]} 30. h5 {[%clk
0:00:28.6]} 30... Rd8 {[%clk 0:01:06.4]} 31. Qf5 {[%clk 0:00:24.1]} 31... Kg7
{[%clk 0:01:03.2]} 32. Qg4+ {[%clk 0:00:23.4]} 32... Kh6 {[%clk 0:01:01]} 33.
Rc3 {[%clk 0:00:21.4]} 33... Qe6 {[%clk 0:00:59.9]} 34. Qxe6 {[%clk 0:00:18.9]}
34... fxe6 {[%clk 0:00:59.8]} 35. Rc7 {[%clk 0:00:19.6]} 35... b6 {[%clk
0:00:56.3]} 36. Rxa7 {[%clk 0:00:18.8]} 36... Rd2 {[%clk 0:00:56.8]} 37. b3
{[%clk 0:00:18.4]} 37... Rxf2 {[%clk 0:00:56.6]} 38. Kg3 {[%clk 0:00:19.1]}
38... Rc2 {[%clk 0:00:50.5]} 39. Ra6 {[%clk 0:00:17.9]} 39... Kxh5 {[%clk
0:00:47.9]} 40. a4 {[%clk 0:00:17.2]} 40... Rc3+ {[%clk 0:00:47.5]} 41. Kh2
{[%clk 0:00:17.4]} 41... Rxb3 {[%clk 0:00:47.8]} 42. a5 {[%clk 0:00:16.6]} 42...
bxa5 {[%clk 0:00:46.7]} 43. Rxe6 {[%clk 0:00:17.3]} 43... Kg5 {[%clk 0:00:46.5]}
44. Ra6 {[%clk 0:00:17.8]} 44... Ra3 {[%clk 0:00:46.4]} 45. Ra7 {[%clk
0:00:18.1]} 45... Kg6 {[%clk 0:00:46.4]} 46. g3 {[%clk 0:00:16.3]} 46... Ra4
{[%clk 0:00:45.1]} 47. Kh3 {[%clk 0:00:16]} 47... h5 {[%clk 0:00:45.4]} 48. Kg2
{[%clk 0:00:14.4]} 48... Ra3 {[%clk 0:00:45.2]} 49. Kf2 {[%clk 0:00:14.1]} 49...
Kg5 {[%clk 0:00:44.7]} 50. Rg7+ {[%clk 0:00:13.4]} 50... Kh6 {[%clk 0:00:45]}
51. Rg8 {[%clk 0:00:13.4]} 51... a4 {[%clk 0:00:43.7]} 52. Rf8 {[%clk
0:00:10.2]} 52... Kg7 {[%clk 0:00:43.1]} 53. Ra8 {[%clk 0:00:11.1]} 53... Kf7
{[%clk 0:00:42.3]} 54. Ra7+ {[%clk 0:00:09]} 54... Kg6 {[%clk 0:00:42.4]} 55.
Ra6 {[%clk 0:00:09.5]} 55... Ra1 {[%clk 0:00:41.7]} 56. Kf3 {[%clk 0:00:08.4]}
56... a3 {[%clk 0:00:41.6]} 57. Kg2 {[%clk 0:00:08]} 57... Kg5 {[%clk
0:00:40.2]} 58. Ra8 {[%clk 0:00:07.6]} 58... Kg6 {[%clk 0:00:37.8]} 59. Ra6
{[%clk 0:00:07.8]} 59... Kf7 {[%clk 0:00:38.1]} 60. Ra7+ {[%clk 0:00:08.1]}
60... Ke6 {[%clk 0:00:38.5]} 61. Ra6+ {[%clk 0:00:08.6]} 61... Ke7 {[%clk
0:00:36.7]} 62. Kh2 {[%clk 0:00:08.4]} 62... a2 {[%clk 0:00:30.6]} 63. Kg2
{[%clk 0:00:07.5]} 63... Kf7 {[%clk 0:00:31]} 64. Ra7+ {[%clk 0:00:06]} 64...
Kg6 {[%clk 0:00:31.3]} 65. Ra6 {[%clk 0:00:05.7]} 65... Kg5 {[%clk 0:00:30.2]}
66. Ra8 {[%clk 0:00:06.3]} 66... Re1 {[%clk 0:00:29.4]} 67. Rxa2 {[%clk
0:00:05.5]} 67... Rxe4 {[%clk 0:00:29.6]} 68. Kf3 {[%clk 0:00:06.1]} 68... Rb4
{[%clk 0:00:27.8]} 69. Ra8 {[%clk 0:00:07]} 69... Rb3+ {[%clk 0:00:27.7]} 70.
Kg2 {[%clk 0:00:07.7]} 70... e4 {[%clk 0:00:20.7]} 71. Rg8+ {[%clk 0:00:07.5]}
71... Kf5 {[%clk 0:00:21.2]} 72. Rh8 {[%clk 0:00:07.5]} 72... Kg6 {[%clk
0:00:21.8]} 73. Rg8+ {[%clk 0:00:07.7]} 73... Kh7 {[%clk 0:00:21.2]} 74. Re8
{[%clk 0:00:08]} 74... f5 {[%clk 0:00:21.5]} 75. Re6 {[%clk 0:00:07.4]} 75...
Kg7 {[%clk 0:00:21.6]} 76. Rd6 {[%clk 0:00:05]} 76... Ra3 {[%clk 0:00:20.8]} 77.
Re6 {[%clk 0:00:05.2]} 77... Ra7 {[%clk 0:00:20.4]} 78. Kf2 {[%clk 0:00:04.6]}
78... Rf7 {[%clk 0:00:20.1]} 79. Ke3 {[%clk 0:00:04.7]} 79... Rf6 {[%clk
0:00:19.7]} 80. Re7+ {[%clk 0:00:04.9]} 80... Kg6 {[%clk 0:00:20.1]} 81. Kf4
{[%clk 0:00:05]} 81... Ra6 {[%clk 0:00:20.4]} 82. Re5 {[%clk 0:00:04.4]} 82...
Ra1 {[%clk 0:00:13.4]} 83. Re6+ {[%clk 0:00:04.4]} 83... Kf7 {[%clk 0:00:13]}
84. Re5 {[%clk 0:00:04.2]} 84... Rf1+ {[%clk 0:00:12]} 85. Kg5 {[%clk
0:00:04.7]} 85... Rf3 {[%clk 0:00:11.9]} 86. Kxh5 {[%clk 0:00:04.6]} 86... Kf6
{[%clk 0:00:11.8]} 87. Re8 {[%clk 0:00:04.7]} 87... Rxg3 {[%clk 0:00:12]} 88.
Rf8+ {[%clk 0:00:04.5]} 88... Ke5 {[%clk 0:00:12.4]} 89. Re8+ {[%clk 0:00:05.1]}
89... Kf4 {[%clk 0:00:13]} 90. Rf8 {[%clk 0:00:05]} 90... Rg1 {[%clk 0:00:13.4]}
91. Rg8 {[%clk 0:00:05]} 91... Rxg8 {[%clk 0:00:12.1]} 0-1